bitfinex/quotes_ETHUSD_20220113
["timestamp","ask_amount","ask_price","bid_price","bid_amount"]
[1642040959379,5.9322,3341.2,3341.1,1.3119369]
[1642040959632,5.9322,3341.2,3341.1,0.3119369]
[1642040959834,5.9322,3341.2,3341.1,1.3119369]
[1642040960235,5.9322,3341.2,3341.1,0.3119369]
[1642040962735,5.9322,3341.2,3341.1,0.0119369]
[1642040963770,5.9322,3341.2,3341.1,2.7479435]
[1642040963972,5.9322,3341.2,3341.1,3.0479435]
[1642040964170,5.9322,3341.2,3341.1,4.0479435]
[1642040964769,5.9322,3341.2,3341.1,3.12491536]
[1642040965171,5.9322,3341.2,3341.1,1.52491536]
[1642040966675,5.9322,3341.2,3341.1,0.0119369]
[1642040970029,7.112,3341.2,3341.1,0.0119369]
[1642040970228,7.2317,3341.2,3341.1,0.0119369]
[1642040970427,7.2317,3341.2,3340.9,0.01307374]
[1642040970630,0.1197,3341.1,3340.9,0.01307374]
[1642040970874,5.9322,3341.0,3340.9,0.01307374]
[1642040971077,7.35608762,3341.0,3340.9,0.01307374]
[1642040971980,7.35608762,3341.0,3340.8,0.01364217]
[1642040972179,2.56644248,3340.9,3340.8,0.01364217]
[1642040972380,8.49864248,3340.9,3340.8,0.01364217]
[1642040973381,11.06549439,3340.9,3340.8,0.01364217]
[1642040975425,11.49149439,3340.9,3340.8,0.01364217]
[1642040976025,8.92505191,3340.9,3340.8,0.01364217]
[1642040976430,6.3582,3340.9,3340.8,0.01364217]
[1642040978282,8.77285061,3340.9,3340.8,0.01364217]
[1642040978874,6.3582,3340.9,3340.8,0.01364217]
[1642040979480,8.77566591,3340.9,3340.8,0.01364217]
[1642040979676,8.79147488,3340.9,3340.8,0.01364217]
[1642040979876,6.3582,3340.9,3340.8,0.01364217]
[1642040980083,8.76203667,3340.9,3340.8,0.01364217]
[1642040980481,6.3582,3340.9,3340.8,0.01364217]
[1642040980679,8.81400315,3340.9,3340.8,0.01364217]
[1642040981682,8.92520439,3340.9,3340.8,0.01364217]
[1642040982321,6.3582,3340.9,3340.8,0.01364217]
[1642040984223,8.81013341,3340.9,3340.8,0.01364217]
[1642040984427,6.3582,3340.9,3340.8,0.01364217]
[1642040986579,8.79638004,3340.9,3340.8,0.01364217]
[1642040986979,8.80620588,3340.9,3340.8,0.01364217]
[1642040988877,6.3582,3340.9,3340.8,0.01364217]
[1642040989520,8.92540028,3340.9,3340.8,0.01364217]
[1642040990325,6.3582,3340.9,3340.8,0.01364217]
[1642040991524,8.74659033,3340.9,3340.8,0.01364217]
[1642040991931,11.31376461,3340.9,3340.8,0.01364217]
[1642040993132,8.92537428,3340.9,3340.8,0.01364217]
[1642040994480,11.34870675,3340.9,3340.8,0.01364217]
[1642040995283,11.29870675,3340.9,3340.8,0.01364217]
[1642040997037,11.29870675,3340.9,3340.3,0.03]
[1642040997239,0.74854,3340.8,3340.3,0.03]
[1642040997440,8.69108715,3340.7,3340.4,0.00227369]
[1642040997940,1.49811647,3340.6,3340.4,0.00227369]
[1642040998141,8.38368869,3340.5,3340.4,0.00227369]
[1642040998339,6.75,3340.4,3340.1,0.03]
[1642040998542,1.49811647,3340.6,3339.2,2.25397627]
[1642040998543,8.82526644,3340.3,3339.2,2.25397627]
[1642040998741,0.426,3340.2,3339.2,2.25397627]
[1642040999144,5.8822,3340.1,3339.2,2.25397627]
[1642040999340,0.376,3340.0,3339.2,2.25397627]
[1642040999541,6.98779169,3339.9,3339.4,0.79456595]
[1642040999742,7.41379169,3339.9,3339.4,0.79456595]
[1642040999940,7.41379169,3339.9,3339.5,0.00511581]
[1642041000787,2.48444484,3339.8,3339.5,0.00511581]
[1642041000974,5.8822,3339.7,3339.5,0.00511581]
[1642041001477,2.40888283,3339.6,3339.5,0.00511581]
[1642041001876,8.29108283,3339.6,3339.5,0.00511581]
[1642041002080,5.8822,3339.6,3339.5,0.00511581]
[1642041003988,5.8822,3339.6,3339.5,5.25511581]
[1642041004385,5.8822,3339.6,3339.5,6.25511581]
[1642041004627,5.8822,3339.6,3339.5,1.00511581]
[1642041004828,5.8822,3339.6,3339.5,1.74845]
[1642041005027,5.8822,3339.6,3339.5,0.74845]
[1642041005227,5.8822,3339.6,3339.5,1.75356581]
[1642041005830,5.8822,3339.6,3339.5,5.25356581]
[1642041007031,5.88792594,3339.6,3339.5,1.00511581]
[1642041007836,5.88792594,3339.6,3339.5,4.75511581]
[1642041008137,5.8822,3339.6,3339.5,10.50511581]
[1642041008577,5.8822,3339.6,3339.5,6.75511581]
[1642041008979,5.8822,3339.6,3339.5,9.30511581]
[1642041009380,5.8822,3339.6,3339.5,9.62697807]
[1642041009585,5.8822,3339.6,3339.5,9.94884033]
[1642041009883,5.8822,3339.6,3339.5,4.94729033]
[1642041011784,5.8822,3339.6,3339.5,5.24729033]
[1642041012026,5.8822,3339.6,3339.5,5.54729033]
[1642041014232,5.8822,3339.6,3339.5,2.99729033]
[1642041014731,5.86752713,3339.6,3339.5,2.99729033]
[1642041016982,5.86752713,3339.6,3339.5,5.25746175]
[1642041017384,0.1197,3340.4,3339.6,6.75]
[1642041017588,1.53237573,3341.2,3339.7,4.54120535]
[1642041017589,0.1197,3340.5,3339.7,4.54120535]
[1642041017789,3.2335,3340.7,3340.0,0.74829]
[1642041017989,7.504,3340.6,3340.1,0.32186226]
[1642041018286,7.504,3340.6,3340.2,0.32299911]
[1642041018487,1.28441497,3340.5,3340.2,0.32299911]
[1642041018886,1.28441497,3340.5,3340.3,0.7483]
[1642041019520,1.28441497,3340.5,3340.3,1.49658]
[1642041019724,1.28441497,3340.5,3340.3,0.7483]
[1642041019920,1.28441497,3340.5,3340.3,0.7482835]
[1642041023370,1.28441497,3340.5,3340.4,0.32186226]
[1642041023570,1.28441497,3340.5,3340.4,0.64372452]
[1642041031576,5.58441497,3340.5,3340.4,0.64372452]
[1642041031878,13.25881497,3340.5,3340.4,0.64372452]
[1642041032280,15.8262987,3340.5,3340.4,0.64372452]
[1642041032680,15.8262987,3340.5,3340.4,0.59372452]
[1642041032981,15.8262987,3340.5,3340.4,0.32186226]
[1642041033181,15.8262987,3340.5,3340.4,0.59372452]
[1642041033982,16.2522987,3340.5,3340.4,0.59372452]
[1642041034830,6.75,3340.4,3340.2,0.00113685]
[1642041035034,12.9632,3340.3,3340.2,0.00113685]
[1642041035736,12.9632,3340.3,3339.3,1.60512716]
[1642041035934,1.17720706,3339.8,3339.3,1.60512716]
[1642041036136,5.9872,3339.7,3339.3,1.8988745]
[1642041036337,5.9872,3339.7,3339.3,1.91148462]
[1642041036535,5.9872,3339.7,3339.3,0.91148462]
[1642041037335,5.9872,3339.7,3339.4,1.51297846]
[1642041037736,1.34430718,3339.6,3339.5,1.95105491]
[1642041037940,1.34430718,3339.6,3339.5,2.25105491]
[1642041038143,1.34430718,3339.6,3339.5,3.25105491]
[1642041038986,1.34430718,3339.6,3339.5,3.20105491]
[1642041040887,1.34430718,3339.6,3339.5,2.25105491]
[1642041041087,1.34430718,3339.6,3339.5,3.25105491]
[1642041041289,1.34430718,3339.6,3339.5,1.95105491]
[1642041042530,1.34430718,3339.6,3339.5,2.25105491]
[1642041042732,1.34430718,3339.6,3339.5,3.25105491]
[1642041043331,1.34430718,3339.6,3339.5,3.55105491]
[1642041044933,1.34430718,3339.6,3339.5,5.06403337]
[1642041045534,5.9872,3339.7,3339.5,5.06403337]
[1642041045789,3.6163709,3339.7,3339.6,8.4447021]
[1642041045983,3.6163709,3339.7,3339.6,8.44924949]
[1642041046285,5.9872,3340.5,3340.0,0.598622]
[1642041046485,5.9872,3340.5,3339.9,2.6937139]
[1642041046486,1.44966662,3340.3,3340.2,0.74829]
[1642041046683,1.44966662,3340.3,3340.2,1.04829]
[1642041046884,1.44966662,3340.3,3340.2,1.04942685]
[1642041047092,1.44966662,3340.3,3340.2,2.04942685]
[1642041047289,1.44966662,3340.3,3340.2,1.04942685]
[1642041047490,1.44966662,3340.3,3340.2,2.04942685]
[1642041047689,1.44966662,3340.3,3340.2,4.29275629]
[1642041047892,1.44966662,3340.3,3340.2,5.49000129]
[1642041049544,1.44966662,3340.3,3340.2,3.24667185]
[1642041049746,1.44966662,3340.3,3340.2,5.48519289]
[1642041049950,5.9872,3340.5,3340.3,1.04822]
[1642041050150,5.9872,3340.5,3340.4,9.91165066]
[1642041050453,5.9872,3340.5,3340.4,10.21165066]
[1642041050650,5.9872,3340.5,3340.4,11.21165066]
[1642041050848,5.9372,3340.5,3340.4,4.46165066]
[1642041052354,5.9372,3340.5,3340.4,1.8985311]
[1642041052555,5.9372,3340.5,3340.4,0.8985311]
[1642041053574,5.9372,3340.5,3340.4,3.13883389]
[1642041053775,5.9372,3340.5,3340.4,1.8985311]
[1642041054177,5.9372,3340.5,3340.4,4.5485311]
[1642041054678,5.9372,3340.5,3340.4,6.81191399]
[1642041056081,5.9372,3340.5,3340.4,1.8985311]
[1642041056481,5.9372,3340.5,3340.4,0.5985311]
[1642041056681,5.9372,3340.5,3340.4,0.3]
[1642041056881,5.9372,3340.5,3340.3,2.81294218]
[1642041057128,8.4817936,3340.5,3340.4,1.0]
[1642041057531,8.4817936,3340.5,3340.3,1.81294218]
[1642041057932,8.4817936,3340.5,3340.3,0.3]
[1642041058329,8.4817936,3340.5,3340.2,0.60113685]
[1642041058530,8.4817936,3340.5,3340.2,0.30113685]
[1642041059233,2.56733045,3340.4,3340.2,0.30113685]
[1642041059631,2.56733045,3340.4,3340.2,0.00113685]
[1642041060131,2.56733045,3340.4,3340.0,0.0022737]
[1642041060332,8.4817936,3340.5,3340.1,0.523877]
[1642041060640,8.4817936,3340.5,3340.2,0.00113685]
[1642041061878,8.4817936,3340.5,3340.2,1.04946685]
[1642041062878,8.4817936,3340.5,3340.2,0.00113685]
[1642041063083,11.01768318,3340.5,3340.2,0.00113685]
[1642041063280,0.1197,3340.4,3340.2,0.00113685]
[1642041063477,8.4817936,3340.5,3340.0,0.0022737]
[1642041063478,8.6014936,3340.5,3340.0,0.0022737]
[1642041063878,8.6014936,3340.5,3339.9,1.00284212]
[1642041064280,8.6014936,3340.5,3340.0,0.0022737]
[1642041064523,8.4817936,3340.5,3340.0,0.0022737]
[1642041064925,2.56751144,3340.3,3340.0,0.0022737]
[1642041065525,2.56751144,3340.3,3339.9,0.00284212]
[1642041065723,2.56751144,3340.3,3339.9,0.52673702]
[1642041066128,2.56751144,3340.4,3340.0,0.3022737]
[1642041066529,2.56751144,3340.4,3340.1,0.00170527]
[1642041066729,2.56751144,3340.4,3340.1,0.30170527]
[1642041066929,2.56751144,3340.4,3339.9,0.00284212]
[1642041067129,2.56751144,3340.4,3339.8,0.3]
[1642041067130,2.56751144,3340.4,3340.2,0.00113685]
[1642041067330,2.56751144,3340.4,3340.1,0.3]
[1642041067530,2.56751144,3340.4,3340.1,0.30170527]
[1642041067730,2.56751144,3340.4,3340.2,0.00113685]
[1642041068029,8.4817936,3340.5,3340.2,0.00113685]
[1642041069782,7.11149131,3340.5,3340.2,0.00113685]
[1642041069984,2.56739563,3340.4,3340.2,0.00113685]
[1642041070584,2.56739563,3340.4,3340.2,0.74946685]
[1642041070787,3.91137278,3340.4,3340.2,0.74946685]
[1642041071386,1.34397715,3340.4,3340.2,0.74946685]
[1642041071686,1.34397715,3340.4,3340.2,0.00113685]
[1642041072926,1.34397715,3340.4,3340.2,0.74946685]
[1642041073228,1.34397715,3340.4,3340.2,0.00113685]
[1642041080730,7.11149131,3340.5,3340.2,0.00113685]
[1642041081032,7.11149131,3340.5,3340.4,1.5719673]
[1642041081431,7.11149131,3340.5,3340.4,2.5719673]
[1642041081829,7.11149131,3340.5,3340.4,1.8237473]
[1642041082834,7.11149131,3340.5,3340.4,2.5719573]
[1642041088528,9.67864179,3340.5,3340.4,2.5719573]
[1642041089432,7.11149131,3340.5,3340.4,2.5719573]
[1642041090882,5.9372,3340.5,3340.4,8.91675549]
[1642041091479,2.5914409,3340.5,3340.4,8.91675549]
[1642041091679,3.32017512,3341.3,3340.5,6.8]
[1642041091880,3.93699994,3341.7,3341.2,0.74808]
[1642041091881,1.48786009,3341.4,3341.2,0.74808]
[1642041092887,1.48786009,3341.4,3341.2,1.2717448]
[1642041093087,2.56671931,3341.3,3341.2,1.2717448]
[1642041095829,2.56671931,3341.3,3341.1,1.4488737]
[1642041096028,2.56671931,3341.3,3340.7,2.24442]
[1642041096228,0.00454739,3341.2,3340.7,1.49625]
[1642041096428,0.00454739,3341.2,3340.6,1.79625]
[1642041096628,0.00397896,3341.1,3340.6,0.3]
[1642041096828,0.00397896,3341.1,3340.5,1.3]
[1642041097030,1.31566117,3340.8,3340.5,0.3]
[1642041097236,1.21106116,3340.7,3340.5,1.0]
[1642041097432,1.21276643,3340.7,3340.5,1.0]
[1642041097632,0.00113685,3340.6,3340.4,3.11294218]
[1642041097832,0.00113685,3340.6,3340.4,1.81294218]
[1642041098032,0.00113685,3340.6,3340.5,1.0]
[1642041098279,0.00113685,3340.6,3340.4,1.3]
[1642041098475,0.00113685,3340.6,3340.4,0.3]
[1642041098674,0.00113685,3340.6,3340.4,1.04823]
[1642041098874,0.00113685,3340.6,3340.5,4.4471649]
[1642041099078,0.00113685,3340.6,3340.5,8.34089868]
[1642041100079,0.00113685,3340.6,3340.5,6.0471649]
[1642041100279,0.00113685,3340.6,3340.5,8.35306508]
[1642041105037,0.00113685,3340.6,3340.5,25.88306508]
[1642041105232,0.00113685,3340.6,3340.5,8.35306508]
[1642041105638,0.00113685,3340.6,3340.5,9.14763103]
[1642041106884,0.00113685,3340.6,3340.5,8.35306508]
[1642041109942,0.00113685,3340.6,3340.5,25.88306508]
[1642041110143,0.00113685,3340.6,3340.5,8.35306508]
[1642041110544,0.00113685,3340.6,3340.5,9.14763103]
[1642041111346,0.00113685,3340.6,3340.5,8.35306508]
[1642041112145,0.00113685,3340.6,3340.5,9.86600726]
[1642041113585,0.00113685,3340.6,3340.5,8.35306508]
[1642041115884,0.00113685,3340.6,3340.5,2.7971649]
[1642041119536,0.00113685,3340.6,3340.5,1.1971649]
[1642041120642,0.00113685,3340.6,3340.5,6.7971649]
[1642041120879,0.00113685,3340.6,3340.5,9.69606775]
[1642041121079,0.00113685,3340.6,3340.5,10.69606775]
[1642041123385,0.00113685,3340.6,3340.5,12.20900993]
[1642041126440,0.00113685,3340.6,3340.5,29.73900993]
[1642041127444,0.00113685,3340.6,3340.5,13.00357588]
[1642041127642,1.36266297,3340.9,3340.6,0.7481]
[1642041127845,1.36266297,3340.9,3340.7,1.6458122]
[1642041128043,0.00227369,3340.8,3340.7,3.96207562]
[1642041128289,0.00227369,3340.8,3340.7,2.9458122]
[1642041128488,0.00227369,3340.8,3340.7,9.03911026]
[1642041129086,4.111,3341.4,3341.0,0.74801]
[1642041129287,4.111,3341.4,3341.1,3.48677697]
[1642041129489,0.00284212,3341.3,3341.1,3.48677697]
[1642041129687,3.19995874,3341.9,3341.2,10.66125391]
[1642041129887,3.1315,3342.0,3341.2,12.98880599]
[1642041130088,3.19995874,3342.1,3341.3,0.06323159]
[1642041130289,0.00341054,3341.9,3341.3,17.59323159]
[1642041130489,0.00341054,3341.9,3341.5,0.74785]
[1642041130688,1.14019354,3341.7,3341.6,6.13593063]
[1642041130888,1.14019354,3341.7,3341.6,2.48593063]
[1642041131091,1.14246723,3341.7,3341.6,3.48593063]
[1642041132447,1.14246723,3341.7,3341.6,6.58593063]
[1642041133949,0.00227369,3341.7,3341.6,6.58593063]
[1642041134450,1.2932,3342.5,3342.1,0.74782]
[1642041134751,0.00397897,3342.4,3342.1,2.04782]
[1642041135050,0.00341054,3342.3,3342.1,2.04782]
[1642041135251,1.52669858,3342.3,3342.1,2.04782]
[1642041135453,0.00284212,3342.2,3342.1,2.04782]
[1642041136714,0.00284212,3342.2,3342.1,3.54346]
[1642041140942,0.00284212,3342.2,3342.1,5.87129958]
[1642041141143,1.42613016,3342.3,3342.1,5.87129958]
[1642041141943,1.42613016,3342.3,3342.1,3.54346]
[1642041142243,1.42613016,3342.3,3342.1,5.92638358]
[1642041142844,1.42613016,3342.3,3342.1,3.54346]
[1642041143895,1.42613016,3342.3,3342.2,2.3381522]
[1642041144096,1.42613016,3342.3,3342.2,3.3381522]
[1642041145593,1.42613016,3342.3,3342.2,1.0]
[1642041146493,1.42613016,3342.3,3342.2,4.0]
[1642041147337,1.42613016,3342.3,3342.2,1.0]
[1642041149337,1.42613016,3342.3,3342.2,3.65]
[1642041149736,1.42613016,3342.3,3342.2,1.0]
[1642041150339,1.42613016,3342.3,3342.2,3.75]
[1642041151396,1.1626,3342.9,3342.6,0.74776]
[1642041151606,3.2685,3343.1,3342.7,0.74774]
[1642041151799,3.2685,3343.1,3342.7,1.04774]
[1642041151800,0.00341054,3342.8,3342.7,1.04774]
[1642041152300,0.00341054,3342.8,3342.7,5.04774]
[1642041152902,0.00341054,3342.8,3342.7,2.4215881]
[1642041154305,0.00341054,3342.8,3342.7,9.0715881]
[1642041154740,1.36071438,3342.8,3342.7,9.0715881]
[1642041155541,1.36071438,3342.8,3342.7,2.4215881]
[1642041155741,1.36071438,3342.8,3342.7,2.04774]
[1642041158295,0.1196,3343.6,3342.7,2.04774]
[1642041158296,0.1196,3343.6,3342.7,25.0760718]
[1642041158491,0.1196,3343.6,3343.4,0.01249175]
[1642041158889,5.60506032,3344.5,3343.5,6.8]
[1642041159090,5.60506032,3344.5,3343.7,17.53]
[1642041159289,0.00625266,3343.9,3343.7,17.53]
[1642041159493,5.60506032,3344.5,3343.8,1.0]
[1642041159692,1.15760623,3343.9,3343.8,16.003]
[1642041160995,1.15760623,3343.9,3343.8,16.86992]
[1642041161303,3.2293,3344.6,3343.8,16.86992]
[1642041161595,5.1249,3344.7,3343.8,16.86992]
[1642041162239,3.4416,3345.0,3344.3,1.49454]
[1642041162438,3.4416,3345.0,3344.4,0.74726]
[1642041162439,1.41171263,3344.6,3344.4,0.74726]
[1642041162640,1.41171263,3344.6,3344.4,1.74726]
[1642041162842,0.00341054,3344.5,3344.4,1.74726]
[1642041163541,0.00341054,3344.5,3344.4,2.4945158]
[1642041167497,6.24,3345.3,3344.9,0.7471482]
[1642041167697,13.60322468,3345.7,3344.9,0.7471482]
[1642041167897,0.00284212,3345.0,3344.9,0.7471482]
[1642041168698,10.50731044,3345.7,3344.9,2.2414582]
[1642041168898,10.50731044,3345.7,3345.3,0.74721]
[1642041169098,1.19638993,3345.6,3345.3,0.74721]
[1642041169554,0.00284211,3345.5,3345.3,0.74721]
[1642041169944,0.00227369,3345.4,3345.3,0.74721]
[1642041171751,0.00227369,3345.4,3345.3,0.74801]
[1642041175390,0.00227369,3345.4,3345.3,0.0008]
[1642041175990,4.05227369,3345.4,3345.3,0.0008]
[1642041176694,9.28535938,3345.4,3345.3,0.0008]
[1642041177348,6.61657246,3345.4,3345.3,0.0008]
[1642041178545,9.2602742,3345.4,3345.3,0.0008]
[1642041179144,6.61657246,3345.4,3345.3,0.0008]
[1642041179548,2.56657246,3345.4,3345.3,0.0008]
[1642041180449,0.00227369,3345.4,3345.3,0.0008]
[1642041180886,2.58082632,3345.4,3345.3,0.0008]
[1642041181087,5.14512509,3345.4,3345.3,0.0008]
[1642041181288,2.56657246,3345.4,3345.3,0.0008]
[1642041181890,0.00227369,3345.4,3345.3,0.0008]
[1642041183994,3.30227369,3345.4,3345.3,0.0008]
[1642041185146,6.8,3345.3,3344.3,1.49466]
[1642041185349,6.8,3345.3,3343.8,15.003]
[1642041185350,0.0128171,3344.4,3343.8,15.003]
[1642041185845,0.1196,3344.3,3343.8,15.003]
[1642041186044,1.31641474,3344.1,3343.8,15.003]
[1642041186444,1.27794937,3344.3,3343.8,15.003]
[1642041186445,0.1196,3344.3,3343.8,15.003]
[1642041186746,0.0128171,3344.4,3343.8,15.75053]
[1642041186944,0.1196,3344.7,3343.8,15.75053]
[1642041187345,2.54916093,3344.7,3343.8,15.75053]
[1642041187545,1.34206205,3344.5,3343.8,15.75053]
[1642041188697,1.34206205,3344.5,3343.9,0.1196]
[1642041188896,1.34206205,3344.5,3344.0,1.49492]
[1642041189095,1.34206205,3344.5,3344.0,1.50060424]
[1642041189700,1.2471,3344.8,3344.0,0.75314424]
[1642041189899,4.6137,3345.4,3344.0,0.75314424]
[1642041189900,5.9794,3344.7,3344.0,0.75314424]
[1642041190101,5.9794,3344.7,3344.2,0.74743]
[1642041190501,5.9794,3344.7,3344.3,0.00397897]
[1642041190702,1.099466,3344.6,3344.3,0.00397897]
[1642041190900,1.099466,3344.6,3344.3,0.75137897]
[1642041191100,1.099466,3344.6,3344.3,0.00397897]
[1642041191300,1.099466,3344.6,3344.4,0.00341054]
[1642041191500,1.099466,3344.6,3344.3,0.00397897]
[1642041192352,5.9794,3344.7,3344.4,0.1196]
[1642041192553,5.9794,3344.7,3344.2,0.12414739]
[1642041192852,5.9794,3344.7,3344.5,0.74736]
[1642041193254,5.9794,3344.7,3344.6,0.0022737]
[1642041193452,7.4573775,3344.7,3344.6,0.0022737]
[1642041194056,7.4573775,3344.7,3344.4,0.00341054]
[1642041196390,7.4573775,3344.7,3344.3,1.49479]
[1642041196690,7.4573775,3344.7,3344.2,0.00454739]
[1642041196691,7.4573775,3344.7,3344.4,0.00341054]
[1642041197097,7.4573775,3344.7,3344.3,0.00397897]
[1642041197297,7.4573775,3344.7,3344.2,0.00454739]
[1642041197596,7.4573775,3344.7,3344.3,0.1196]
[1642041197996,7.4573775,3344.7,3344.4,0.00341054]
[1642041198600,7.4573775,3344.7,3344.1,0.00511581]
[1642041198798,2.70735656,3344.6,3344.1,0.00511581]
[1642041199199,0.1196,3344.5,3344.1,0.00511581]
[1642041199398,2.70735656,3344.6,3344.1,0.00511581]
[1642041199673,7.4573775,3344.7,3344.0,0.74746]
[1642041199870,7.4573775,3344.7,3344.0,0.86706]
[1642041200072,7.4573775,3344.7,3344.1,0.00511581]
[1642041209664,7.4573775,3344.7,3344.2,0.1196]
[1642041209864,7.4573775,3344.7,3344.2,0.86704]
[1642041210064,7.4573775,3344.7,3344.3,0.00397897]
[1642041210894,7.4573775,3344.7,3344.3,0.75139897]
[1642041211298,7.4573775,3344.7,3344.4,0.00341054]
[1642041212598,7.4573775,3344.7,3344.3,0.00397897]
[1642041213000,7.4573775,3344.7,3344.2,0.00454739]
[1642041214645,7.4573775,3344.7,3344.1,0.00511581]
[1642041215655,2.54927659,3344.6,3344.1,0.00511581]
[1642041215851,2.5906356,3344.6,3344.1,0.00511581]
[1642041216052,2.59529922,3344.6,3344.1,0.00511581]
[1642041216251,2.56466007,3344.5,3344.1,0.00511581]
[1642041216851,2.57014215,3344.4,3344.1,0.00511581]
[1642041218698,2.56466007,3344.5,3344.1,0.00511581]
[1642041219097,2.56466007,3344.5,3343.9,0.00625266]
[1642041219302,1.25325469,3344.1,3343.9,0.00625266]
[1642041219498,2.56466007,3344.5,3344.0,0.1196]
[1642041219898,2.56466007,3344.5,3344.2,0.373656]
[1642041220099,2.56466007,3344.5,3344.3,0.1196]
[1642041220298,2.56466007,3344.5,3344.3,0.42357897]
[1642041220498,2.56466007,3344.5,3344.4,0.00341054]
[1642041220699,2.56466007,3344.5,3344.4,0.12301054]
[1642041220901,3.73380317,3344.5,3344.4,0.12301054]
[1642041222650,3.73380317,3344.5,3344.4,0.00341054]
[1642041224350,3.73380317,3344.5,3344.3,0.30397897]
[1642041224554,3.73380317,3344.5,3344.4,0.00341054]
[1642041225152,3.73380317,3344.5,3344.3,0.00397897]
[1642041227403,2.56466007,3344.4,3344.3,0.00397897]
[1642041231465,2.56466007,3344.4,3344.2,0.00454739]
[1642041235400,2.56466007,3344.4,3344.1,0.00511581]
[1642041239454,2.56466007,3344.4,3343.9,0.00625266]
[1642041239856,2.56466007,3344.4,3343.9,1.30625266]
[1642041240906,2.56466007,3344.4,3344.0,0.1196]
[1642041241306,2.56466007,3344.4,3344.1,0.00511581]
[1642041250598,2.56466007,3344.4,3344.2,0.4933035]
[1642041250996,2.56466007,3344.4,3344.3,2.65397897]
[1642041251196,2.56466007,3344.4,3344.3,3.07357897]
[1642041251397,2.56466007,3344.4,3344.3,4.37357897]
[1642041252458,1.20784077,3344.6,3344.3,1.72357897]
[1642041252658,1.20784077,3344.6,3344.4,0.86691]
[1642041252860,1.20784077,3344.6,3344.5,0.3]
[1642041253060,1.20784077,3344.6,3344.5,0.30284212]
[1642041253861,1.20784077,3344.6,3344.5,0.67652222]
[1642041254062,3.77195966,3344.6,3344.5,0.67652222]
[1642041256097,3.77195966,3344.6,3344.5,0.30284212]
[1642041256498,3.77195966,3344.6,3344.5,1.60284212]
[1642041256898,3.77195966,3344.6,3344.5,0.30284212]
[1642041257104,3.77195966,3344.6,3344.5,1.30284212]
[1642041257502,3.77195966,3344.6,3344.5,0.30284212]
[1642041257704,1.20784077,3344.6,3344.5,0.30284212]
[1642041258003,1.20784077,3344.6,3344.5,1.30284212]
[1642041258406,1.20784077,3344.6,3344.5,0.60284212]
[1642041258703,1.20784077,3344.6,3344.5,1.30284212]
[1642041258903,1.20784077,3344.6,3344.5,0.30284212]
[1642041259546,1.20784077,3344.6,3344.5,0.00284212]
[1642041259947,1.20784077,3344.6,3344.3,0.00397897]
[1642041260752,3.7672522,3344.6,3344.3,0.00397897]
[1642041261054,1.20784077,3344.6,3344.1,0.00511581]
[1642041261254,2.56422774,3344.5,3344.1,0.00511581]
[1642041261851,2.56422774,3344.5,3344.2,0.74744]
[1642041262051,2.56422774,3344.5,3344.2,1.34744]
[1642041262251,2.56422774,3344.5,3344.3,0.00397897]
[1642041265906,1.20784077,3344.6,3344.3,0.37767257]
[1642041266310,1.20784077,3344.6,3344.4,0.00341054]
[1642041267051,1.15784077,3344.6,3344.4,0.00341054]
[1642041267854,2.5642177,3344.5,3344.3,0.00397897]
[1642041268860,1.15784077,3344.6,3344.3,0.00397897]
[1642041269958,1.15784077,3344.6,3344.2,0.75198739]
[1642041270159,1.15784077,3344.6,3344.3,0.00397897]
[1642041271007,1.15784077,3344.6,3344.3,1.00397897]
[1642041271203,1.15784077,3344.6,3344.3,1.30397897]
[1642041271410,1.15784077,3344.6,3344.4,0.00341054]
[1642041271603,1.15784077,3344.6,3344.4,0.30341054]
[1642041272011,1.15784077,3344.6,3344.5,0.00284212]
[1642041272410,1.15784077,3344.6,3344.3,0.00397897]
[1642041272813,3.72201991,3344.6,3344.3,0.00397897]
[1642041273413,3.72201991,3344.6,3344.3,1.00397897]
[1642041273611,3.72201991,3344.6,3344.3,0.00397897]
[1642041273812,1.15784077,3344.6,3344.4,0.00341054]
[1642041274015,1.15784077,3344.6,3344.3,0.00397897]
[1642041276768,2.56423809,3344.5,3344.3,0.00397897]
[1642041277372,1.15784077,3344.6,3344.3,0.00397897]
[1642041278700,2.56425795,3344.5,3344.3,0.00397897]
[1642041279201,2.56425795,3344.5,3344.3,3.50397897]
[1642041279399,1.15784077,3344.6,3344.4,1.0]
[1642041279701,1.15784077,3344.6,3344.5,0.00284212]
[1642041280499,3.72201436,3344.6,3344.3,0.00397897]
[1642041281401,2.56417359,3344.5,3344.3,0.00397897]
[1642041281803,2.56417359,3344.5,3344.2,0.00454739]
[1642041282250,1.15784077,3344.6,3344.2,0.00454739]
[1642041283153,2.56427487,3344.5,3344.2,0.00454739]
[1642041283954,2.56427487,3344.5,3344.1,0.00511581]
[1642041291555,2.56427487,3344.5,3344.1,0.75257581]
[1642041292059,2.56427487,3344.5,3344.2,0.00454739]
[1642041294807,2.56427487,3344.5,3344.3,0.74742]
[1642041295008,2.56427487,3344.5,3344.4,5.2696]
[1642041295307,2.56427487,3344.5,3344.4,1.42301054]
[1642041295709,1.15784077,3344.6,3344.4,3.22301054]
[1642041295911,1.15784077,3344.6,3344.4,5.46487054]
[1642041296108,1.15784077,3344.6,3344.5,1.30284212]
[1642041297159,1.15784077,3344.6,3344.5,2.81193956]
[1642041298161,1.15784077,3344.6,3344.5,1.30284212]
[1642041299360,1.15784077,3344.6,3344.5,2.05011212]
[1642041301511,1.15784077,3344.6,3344.5,5.15011212]
[1642041301715,1.15784077,3344.6,3344.5,1.75011212]
[1642041301916,1.15784077,3344.6,3344.5,0.00284212]
[1642041301917,3.72189867,3344.6,3344.5,0.00284212]
[1642041302317,3.72189867,3344.6,3344.1,1.50909744]
[1642041302318,3.72189867,3344.6,3344.2,1.75198739]
[1642041302517,3.72189867,3344.6,3344.5,0.00284212]
[1642041302815,3.72189867,3344.6,3344.3,0.00397897]
[1642041303414,1.30957664,3344.5,3344.3,0.00397897]
[1642041304217,1.30957664,3344.5,3344.3,1.79866897]
[1642041304654,1.30957664,3344.5,3344.4,0.00341054]
[1642041308165,1.30957664,3344.5,3344.4,0.75075054]
[1642041308405,1.30957664,3344.5,3344.4,2.05075054]
[1642041309310,1.15784077,3344.6,3344.4,2.05075054]
[1642041309714,1.15784077,3344.6,3344.5,0.00284212]
[1642041310110,1.15784077,3344.6,3344.5,0.30284212]
[1642041311111,2.68272743,3344.6,3344.5,0.30284212]
[1642041315824,1.15784077,3344.6,3344.5,0.30284212]
[1642041316017,5.9794,3344.7,3344.5,2.86456862]
[1642041316216,5.9794,3344.7,3344.6,7.8312265]
[1642041316415,5.9794,3344.7,3344.6,5.2717737]
[1642041316616,5.9794,3344.7,3344.6,5.8717737]